bitfinex/quotes_BTCUSD_20240627
["timestamp","ask_amount","ask_price","bid_price","bid_amount"]
[1719457831221,0.65561,61014.0,61009.0,0.13023937]
[1719457831827,0.03868624,61013.0,61009.0,0.13023937]
[1719457832098,0.65561,61012.0,61007.0,0.0767]
[1719457832309,0.65561,61012.0,61009.0,0.001]
[1719457832511,0.65561,61012.0,61007.0,0.0767]
[1719457832712,0.65561,61012.0,61009.0,0.163909]
[1719457832919,0.65561,61012.0,61009.0,0.164909]
[1719457833061,0.65561,61012.0,61009.0,0.001]
[1719457833263,0.65561,61012.0,61008.0,0.163912]
[1719457833674,0.66061,61012.0,61008.0,0.163912]
[1719457833987,0.66061,61012.0,61009.0,0.001]
[1719457834309,0.65561,61012.0,61008.0,0.163912]
[1719457834512,0.65961,61012.0,61008.0,0.163912]
[1719457834788,0.01020838,61011.0,61008.0,0.163912]
[1719457834996,0.65561,61010.0,61008.0,0.163912]
[1719457835410,0.01020837,61009.0,61008.0,0.163912]
[1719457835584,0.69984673,61009.0,61008.0,0.163912]
[1719457836029,0.69984673,61009.0,61008.0,0.258212]
[1719457836864,0.68963836,61009.0,61008.0,0.258212]
[1719457837081,0.69984674,61009.0,61008.0,0.337812]
[1719457837287,0.70084674,61009.0,61008.0,0.337812]
[1719457837919,0.69063836,61009.0,61008.0,0.337812]
[1719457838139,0.66681796,61009.0,61008.0,1.59972598]
[1719457838347,0.66881796,61009.0,61008.0,1.59972598]
[1719457838969,0.66681796,61009.0,61008.0,1.59972598]
[1719457839178,0.66581796,61009.0,61008.0,1.59972598]
[1719457839587,0.66581796,61009.0,61008.0,1.60372598]
[1719457839789,0.66581885,61009.0,61008.0,1.60372598]
[1719457839963,0.66581885,61009.0,61008.0,1.59972598]
[1719457840184,0.66581885,61009.0,61008.0,1.48362598]
[1719457840400,0.66681885,61009.0,61008.0,1.58472598]
[1719457840578,0.66681885,61009.0,61008.0,1.60472598]
[1719457841095,0.66681885,61009.0,61008.0,1.60564998]
[1719457841314,0.66681885,61009.0,61008.0,1.60964998]
[1719457841531,0.66681885,61009.0,61008.0,1.60564998]
[1719457841732,0.66681885,61009.0,61008.0,1.58429177]
[1719457841939,0.66681885,61009.0,61008.0,1.58929177]
[1719457842803,0.66682441,61009.0,61008.0,1.58929177]
[1719457846081,0.66682437,61009.0,61008.0,1.58929177]
[1719457846320,0.65661,61009.0,61008.0,1.58929177]
[1719457846546,0.66682437,61009.0,61008.0,1.58929177]
[1719457849310,0.65661,61009.0,61008.0,1.58929177]
[1719457849487,0.66682437,61009.0,61008.0,1.58929177]
[1719457850582,0.66682437,61009.0,61008.0,1.56929177]
[1719457851022,0.66682437,61009.0,61008.0,1.58929177]
[1719457851224,0.66682437,61009.0,61008.0,1.59064998]
[1719457852605,0.66682441,61009.0,61008.0,1.59064998]
[1719457853308,0.66682441,61009.0,61008.0,1.61064998]
[1719457853529,0.66682441,61009.0,61008.0,1.59064998]
[1719457853737,0.66682441,61009.0,61008.0,1.61064998]
[1719457854217,0.65661,61009.0,61008.0,2.33847498]
[1719457854433,0.65661,61009.0,61008.0,3.40362667]
[1719457854434,0.57531,61009.0,61008.0,3.40362667]
[1719457854644,0.00084,61014.0,61013.0,2.267291]
[1719457854895,0.00084,61014.0,61013.0,3.1255003]
[1719457855105,0.00084,61014.0,61013.0,3.13330611]
[1719457855534,0.00084,61014.0,61013.0,2.63353579]
[1719457855744,0.00084,61014.0,61013.0,3.13322273]
[1719457855993,0.00084,61014.0,61013.0,2.63353579]
[1719457856196,0.00184,61014.0,61013.0,3.14722274]
[1719457856405,0.00284,61014.0,61013.0,3.01907895]
[1719457856610,0.00284,61014.0,61013.0,3.11717614]
[1719457857498,0.00284,61014.0,61013.0,3.09262368]
[1719457857908,0.00184,61014.0,61013.0,3.08462368]
[1719457858406,0.00284,61014.0,61013.0,2.98933379]
[1719457858788,0.00284,61014.0,61013.0,2.97533379]
[1719457858993,0.00184,61014.0,61013.0,2.97533379]
[1719457859373,0.00184,61014.0,61013.0,3.02433087]
[1719457859773,0.00284,61014.0,61013.0,3.03833087]
[1719457860642,0.00284,61014.0,61013.0,3.01697266]
[1719457861215,0.00284,61014.0,61013.0,3.01696774]
[1719457861425,0.00284,61014.0,61013.0,2.92086774]
[1719457861627,0.00284,61014.0,61013.0,3.01696774]
[1719457862410,0.00284,61014.0,61013.0,2.96797558]
[1719457862523,0.00084,61020.0,61019.0,0.69744179]
[1719457862739,0.00084,61020.0,61019.0,2.93749377]
[1719457862937,0.00084,61020.0,61019.0,2.99463747]
[1719457863148,0.00084,61020.0,61019.0,2.94564531]
[1719457863516,0.00084,61020.0,61019.0,2.9945797]
[1719457863734,0.00084,61020.0,61019.0,2.99457807]
[1719457864418,0.00084,61020.0,61019.0,2.94564531]
[1719457864881,0.00184,61020.0,61019.0,2.95964531]
[1719457865082,0.00284,61020.0,61019.0,2.97364531]
[1719457865299,0.00084,61026.0,61025.0,1.684803]
[1719457865516,0.48782074,61044.0,61043.0,0.501455]
[1719457865730,0.48782074,61044.0,61043.0,1.31906798]
[1719457865940,0.0972,61049.0,61048.0,0.829027]
[1719457866209,0.0972,61049.0,61048.0,1.156638]
[1719457866501,0.0972,61049.0,61048.0,1.16467705]
[1719457866975,0.0755,61050.0,61048.0,1.16467705]
[1719457866976,0.0755,61050.0,61049.0,1.156617]
[1719457867218,0.0755,61050.0,61049.0,1.252717]
[1719457867472,0.0771,61055.0,61054.0,0.01]
[1719457867704,0.0771,61055.0,61054.0,0.501367]
[1719457867938,0.0771,61055.0,61054.0,1.26066179]
[1719457868638,0.02135821,61061.0,61060.0,0.818865]
[1719457868920,0.02135821,61061.0,61060.0,0.49935754]
[1719457869144,0.19495821,61061.0,61060.0,0.49935754]
[1719457869878,0.19495821,61061.0,61060.0,0.47473733]
[1719457870790,0.19495821,61061.0,61060.0,0.47573733]
[1719457871936,0.19495821,61061.0,61060.0,0.47673733]
[1719457873023,0.19495821,61061.0,61060.0,0.14919133]
[1719457873225,0.85004821,61061.0,61060.0,0.14919133]
[1719457873423,0.85004821,61061.0,61060.0,0.14115279]
[1719457873826,0.85004821,61061.0,61060.0,0.14919133]
[1719457874252,0.83396348,61061.0,61060.0,0.14919133]
[1719457875003,0.83396348,61061.0,61060.0,0.14115279]
[1719457875438,0.83396348,61061.0,61060.0,0.14919133]
[1719457876706,0.83480348,61061.0,61060.0,0.14919133]
[1719457876910,0.83480348,61061.0,61060.0,0.01003854]
[1719457877110,0.83480348,61061.0,61060.0,0.002]
[1719457877221,0.83480348,61061.0,61060.0,0.00997227]
[1719457878399,0.83480348,61061.0,61060.0,0.17374527]
[1719457879258,0.83480348,61061.0,61060.0,0.14912506]
[1719457885963,0.82953,61061.0,61060.0,0.14912506]
[1719457886936,0.82953,61061.0,61060.0,0.81421706]
[1719457886937,0.65593,61061.0,61060.0,0.81421706]
[1719457887147,0.65593,61061.0,61060.0,1.57960204]
[1719457887529,0.65593,61061.0,61060.0,1.48350204]
[1719457887993,0.65593,61061.0,61060.0,1.57960204]
[1719457888391,0.65693,61061.0,61060.0,1.55598183]
[1719457888912,0.65593,61061.0,61060.0,1.55498183]
[1719457889135,0.33997796,61061.0,61060.0,1.55998183]
[1719457889334,0.33997796,61061.0,61060.0,1.56598183]
[1719457889669,0.33997796,61061.0,61060.0,1.57798183]
[1719457890468,0.33997796,61061.0,61060.0,1.48188183]
[1719457890714,0.33997796,61061.0,61060.0,1.56798183]
[1719457891026,0.33997796,61061.0,61060.0,1.57798183]
[1719457897707,0.33997796,61061.0,61060.0,1.45347698]
[1719457898113,0.33997796,61061.0,61060.0,1.61724998]
[1719457904367,0.33997796,61061.0,61060.0,1.43784998]
[1719457904968,0.33997796,61061.0,61060.0,1.76539598]
[1719457905173,0.33997796,61061.0,61060.0,1.94329598]
[1719457905384,0.33997796,61061.0,61060.0,2.57084198]
[1719457905587,0.33997796,61061.0,61060.0,2.61973143]
[1719457905876,0.33997796,61061.0,61060.0,3.16796205]
[1719457906082,0.33997796,61061.0,61060.0,3.23190463]
[1719457906289,0.00839,61071.0,61070.0,1.338325]
[1719457906494,0.00839,61071.0,61070.0,1.89676398]
[1719457906703,0.00839,61071.0,61070.0,2.42425698]
[1719457906918,0.00839,61071.0,61070.0,2.75174998]
[1719457907131,0.00839,61071.0,61070.0,2.86315638]
[1719457907545,0.00839,61071.0,61070.0,2.43102977]
[1719457907720,0.00839,61071.0,61070.0,2.19963677]
[1719457908372,0.00939,61071.0,61070.0,2.19963677]
[1719457908780,0.00839,61071.0,61070.0,2.19963677]
[1719457909140,0.00839,61071.0,61070.0,2.20563677]
[1719457909562,0.00839,61071.0,61070.0,1.83053677]
[1719457909777,0.00796085,61071.0,61070.0,1.83053677]
[1719457911092,0.1057,61077.0,61070.0,1.83053677]
[1719457911293,0.36257993,61214.0,61070.0,1.83053677]
[1719457911294,0.02367829,61087.0,61084.0,0.163708]
[1719457913182,0.02367829,61087.0,61084.0,0.164708]
[1719457914009,0.02367829,61087.0,61084.0,0.165708]
[1719457914215,0.1865,61086.0,61084.0,0.165708]
[1719457914805,0.02367829,61087.0,61084.0,0.002]
[1719457915003,0.2826,61085.0,61084.0,0.002]
[1719457915186,0.2826,61085.0,61084.0,0.001]
[1719457915596,0.93743,61085.0,61084.0,0.002]
[1719457915810,0.93743,61085.0,61084.0,0.001]
[1719457916216,0.93743,61085.0,61084.0,0.002]
[1719457916479,1.428548,61085.0,61084.0,0.002]
[1719457916681,1.428548,61085.0,61084.0,0.001]
[1719457916918,1.428548,61085.0,61084.0,0.002]
[1719457917139,2.02302172,61085.0,61084.0,0.001]
[1719457917343,2.43212753,61085.0,61084.0,0.001]
[1719457917760,2.43212753,61085.0,61084.0,0.002]
[1719457918416,2.30740479,61085.0,61084.0,0.002]
[1719457918625,2.38087975,61085.0,61084.0,0.002]
[1719457918840,1.37114181,61085.0,61084.0,0.002]
[1719457919052,1.46724181,61085.0,61084.0,0.002]
[1719457919256,1.428548,61085.0,61084.0,0.002]
[1719457919492,0.84133,61085.0,61084.0,0.002]
[1719457919700,0.93743,61085.0,61084.0,0.002]
[1719457921138,0.84133,61085.0,61084.0,0.002]
[1719457921343,0.65483,61085.0,61084.0,0.002]
[1719457922639,0.65483,61085.0,61084.0,0.165708]
[1719457922855,0.65483,61085.0,61084.0,0.002]
[1719457923275,0.84583,61085.0,61084.0,0.002]
[1719457927345,0.65483,61085.0,61084.0,0.002]
[1719457929039,0.65483,61085.0,61084.0,0.165708]
[1719457929989,0.65483,61085.0,61084.0,0.820542]
[1719457930190,0.65483,61085.0,61084.0,1.16028098]
[1719457930412,0.65483,61085.0,61084.0,1.48769798]
[1719457930855,0.65483,61085.0,61084.0,1.48669798]
[1719457931042,0.65463297,61085.0,61084.0,1.48669798]
[1719457931350,0.65463297,61085.0,61084.0,1.48769798]
[1719457931761,0.65463297,61085.0,61084.0,1.48726975]
[1719457932264,0.65463297,61085.0,61084.0,1.48569798]
[1719457932714,0.65463297,61085.0,61084.0,1.48969798]
[1719457932894,0.65463297,61085.0,61084.0,1.48569798]
[1719457933099,0.65463297,61085.0,61084.0,1.49069798]
[1719457933758,0.65463297,61085.0,61084.0,0.501125]
[1719457934787,0.65463297,61085.0,61084.0,0.496125]
[1719457934992,0.73253297,61085.0,61084.0,0.005]
[1719457935327,0.73253297,61085.0,61082.0,0.163712]
[1719457935802,0.73253297,61085.0,61083.0,0.163711]
[1719457936881,0.73253297,61085.0,61079.0,0.163721]
[1719457936882,0.89623897,61085.0,61079.0,0.163721]
[1719457937176,0.163709,61084.0,61072.0,0.405177]
[1719457937366,0.75093297,61083.0,61078.0,0.163723]
[1719457937542,0.75093297,61083.0,61079.0,0.163722]
[1719457938893,0.75093297,61083.0,61079.0,0.165722]
[1719457939126,0.75093297,61083.0,61079.0,0.002]
[1719457939351,0.163715,61082.0,61079.0,0.002]
[1719457939588,0.65463297,61081.0,61079.0,0.002]
[1719457939826,0.65463297,61081.0,61079.0,0.005]
[1719457940276,0.65463297,61081.0,61077.0,0.163726]
[1719457940521,0.65463297,61081.0,61074.0,0.32747]
[1719457940522,0.65463297,61081.0,61079.0,0.007]
[1719457941128,0.65463297,61081.0,61079.0,0.004]
[1719457941748,0.0808,61080.0,61079.0,0.004]
[1719457941921,0.0808,61080.0,61067.0,0.163753]
[1719457941922,0.327466,61075.0,61067.0,0.163753]
[1719457942134,0.0808,61073.0,61068.0,0.163751]
[1719457942353,0.65463297,61072.0,61068.0,0.163751]
[1719457943722,0.65463297,61072.0,61068.0,0.164751]
[1719457943946,0.65463297,61072.0,61069.0,0.163748]
[1719457947402,0.32655721,61072.0,61069.0,0.163748]
[1719457949931,0.32655721,61072.0,61070.0,0.0843]
[1719457950689,0.32655721,61072.0,61071.0,0.903017]
[1719457952241,0.32655721,61072.0,61071.0,0.818717]
[1719457953507,0.06475935,61072.0,61071.0,0.818717]
[1719457954099,0.06475935,61072.0,61071.0,0.49123]
[1719457962375,0.06475935,61072.0,61071.0,1.002217]
[1719457962549,0.06475935,61072.0,61071.0,1.57334644]
[1719457963306,0.06475935,61072.0,61071.0,1.49204298]
[1719457963985,0.06475935,61072.0,61071.0,1.49604298]
[1719457964679,0.06475935,61072.0,61071.0,1.08985598]
[1719457964955,0.06475935,61072.0,61071.0,0.930217]
[1719457965775,0.06475935,61072.0,61071.0,0.926217]
[1719457965972,0.06475935,61072.0,61071.0,0.927217]
[1719457966585,0.06475935,61072.0,61071.0,0.926217]
[1719457970392,0.06475935,61072.0,61071.0,1.012617]
[1719457973939,0.06475935,61072.0,61071.0,0.68513]
[1719457976604,0.06475935,61072.0,61069.0,0.163748]
[1719457976807,0.0959,61071.0,61069.0,0.163748]
[1719457976979,0.06475935,61070.0,61069.0,0.163748]
[1719457979009,0.06475935,61070.0,61065.0,0.1]
[1719457979214,0.06475935,61070.0,61066.0,0.163756]
[1719457979390,0.086,61069.0,61066.0,0.163756]
[1719457979589,0.06475935,61068.0,61066.0,0.163756]
[1719457979797,0.06475935,61068.0,61067.0,0.163754]
[1719457981428,0.06475935,61068.0,61067.0,0.491263]
[1719457981635,0.06475935,61068.0,61067.0,0.573663]
[1719457981853,0.06475935,61068.0,61067.0,0.678663]
[1719457987433,0.06475935,61068.0,61067.0,1.006172]
[1719457988058,0.06475935,61068.0,61067.0,1.102072]
[1719457989522,0.06475935,61068.0,61067.0,1.108072]
[1719457989725,0.06475935,61068.0,61067.0,1.105072]
[1719457990046,0.06475935,61068.0,61067.0,1.109072]
[1719457991171,0.06475935,61068.0,61067.0,1.61891998]
[1719457991343,0.06475935,61068.0,61067.0,1.59891998]
[1719457992167,0.06475935,61068.0,61067.0,1.59591998]
[1719457992345,0.06475935,61068.0,61067.0,1.59491998]
[1719457992710,0.06475935,61068.0,61067.0,1.60491998]
[1719457992922,0.06475935,61068.0,61067.0,1.60191998]
[1719457993346,0.06475935,61068.0,61067.0,1.61191998]
[1719458001449,0.06475935,61068.0,61067.0,1.51601998]
[1719458001622,0.06475935,61068.0,61067.0,1.61191998]
[1719458002779,0.32742,61084.0,61076.0,0.163728]
[1719458003002,0.07373469,61079.0,61076.0,0.163728]
[1719458003425,0.07373469,61079.0,61077.0,0.163727]
[1719458003628,0.07373469,61079.0,61075.0,0.327465]
[1719458003629,0.07373469,61079.0,61078.0,0.163725]
[1719458004006,0.07373469,61080.0,61079.0,0.491166]
[1719458006074,0.2174394,61082.0,61081.0,0.163717]
[1719458006493,0.21743619,61082.0,61081.0,0.163717]
[1719458007515,0.21743619,61082.0,61081.0,0.164717]
[1719458008076,0.21743619,61082.0,61081.0,0.165717]
[1719458008484,0.21743619,61082.0,61081.0,0.002]
[1719458009295,0.21743,61082.0,61081.0,0.002]
[1719458010253,0.27837261,61082.0,61081.0,0.002]
[1719458010482,0.21743249,61082.0,61081.0,0.002]
[1719458010654,0.87229249,61082.0,61081.0,0.002]
[1719458012442,0.77399847,61082.0,61081.0,0.002]
[1719458016045,0.68969847,61082.0,61081.0,0.002]
[1719458016262,0.68969847,61082.0,61081.0,0.165717]
[1719458016426,0.76340535,61082.0,61081.0,0.165717]
[1719458017082,0.76340489,61082.0,61081.0,0.592451]
[1719458017854,0.76340489,61082.0,61081.0,0.673051]
[1719458018280,0.76340489,61082.0,61081.0,0.820585]
[1719458018281,0.72856642,61082.0,61081.0,0.820585]
[1719458018481,0.72856642,61082.0,61081.0,1.25872398]
[1719458018482,0.65486,61082.0,61081.0,1.25872398]
[1719458018917,0.65486,61082.0,61081.0,1.58615798]
[1719458022543,0.65486,61082.0,61081.0,1.58515798]
[1719458022888,0.65486,61082.0,61081.0,1.59215798]
[1719458023445,0.65486,61082.0,61081.0,1.60115798]
[1719458023646,0.65486,61082.0,61081.0,1.59215798]
[1719458023990,0.65486,61082.0,61081.0,1.60415798]
[1719458024435,0.65486,61082.0,61081.0,1.59615798]
[1719458024606,0.65486,61082.0,61081.0,1.60715798]
[1719458026136,0.65486,61082.0,61081.0,1.59615798]
[1719458026342,0.65486,61082.0,61081.0,1.60715798]
[1719458027170,0.65486,61082.0,61081.0,1.59515798]
[1719458027500,0.65486,61082.0,61081.0,1.60715798]
[1719458028444,0.65486,61082.0,61081.0,1.51125798]
[1719458030273,0.65486,61082.0,61081.0,1.60715798]
[1719458038549,0.6557,61082.0,61081.0,1.60715798]
[1719458040783,0.6557,61082.0,61081.0,2.35459198]
[1719458040990,0.6557,61082.0,61081.0,2.45459198]
[1719458041198,0.64197574,61082.0,61081.0,2.45459198]
[1719458041797,0.64197574,61082.0,61081.0,2.43159198]
[1719458042034,0.64197574,61082.0,61081.0,2.44559198]
[1719458042652,0.64197574,61082.0,61081.0,2.45859198]
[1719458043401,0.64197574,61082.0,61081.0,2.25859198]
[1719458043604,0.64197574,61082.0,61081.0,2.45859198]
[1719458045092,0.64197574,61082.0,61081.0,1.61525798]
[1719458045328,0.64197574,61082.0,61081.0,1.73115798]
[1719458045563,0.64197574,61082.0,61081.0,1.71115798]
[1719458047833,0.64197574,61082.0,61081.0,1.73115798]
[1719458050218,0.64197574,61082.0,61081.0,2.25859198]
[1719458052360,0.64197574,61082.0,61081.0,2.45859198]
[1719458054300,0.64197574,61082.0,61081.0,2.25859198]
[1719458054812,0.64197574,61082.0,61081.0,2.45859198]
[1719458055026,0.64197574,61082.0,61081.0,2.25859198]
[1719458055453,0.64197574,61082.0,61081.0,2.45859198]
[1719458055673,0.64197574,61082.0,61081.0,2.25859198]
[1719458057111,0.34126109,61082.0,61081.0,2.25859198]
[1719458057342,0.34126109,61082.0,61081.0,2.45859198]
[1719458060367,0.34126109,61082.0,61081.0,2.25859198]
[1719458062922,0.34126109,61082.0,61081.0,2.45859198]
[1719458063130,0.34126109,61082.0,61081.0,2.25859198]
[1719458070257,0.34126109,61082.0,61081.0,2.45859198]
[1719458070837,0.34126109,61082.0,61081.0,2.59459549]
[1719458071039,0.34126109,61082.0,61081.0,2.59551949]
[1719458072378,0.34126109,61082.0,61081.0,2.59551888]
[1719458072526,0.34126109,61082.0,61081.0,3.12295288]
[1719458072908,0.34126109,61082.0,61081.0,3.56368754]
[1719458073117,0.34126109,61082.0,61081.0,3.57706826]
[1719458073675,0.34126109,61082.0,61081.0,3.5770615]
[1719458074403,0.34126109,61082.0,61081.0,4.1756455]
[1719458074609,0.34126109,61082.0,61081.0,4.10765066]
[1719458074840,0.34126109,61082.0,61081.0,4.17564466]
[1719458075590,0.34126109,61082.0,61081.0,3.60853398]
[1719458075796,0.34126109,61082.0,61081.0,4.23021442]
[1719458075977,0.34126109,61082.0,61081.0,4.1076481]
[1719458076986,0.34126109,61082.0,61081.0,4.29820793]
[1719458077564,0.34126109,61082.0,61081.0,4.36375893]
[1719458077960,0.00084,61087.0,61086.0,2.519288]
[1719458078170,0.00084,61087.0,61086.0,3.70758565]
[1719458078386,0.00084,61087.0,61086.0,3.7755724]
[1719458078792,0.00084,61087.0,61086.0,3.28988724]
[1719458078944,0.00084,61087.0,61086.0,3.77549931]
[1719458079150,0.00084,61087.0,61086.0,3.80249931]
[1719458080493,0.00084,61087.0,61086.0,3.61198895]
[1719458082014,0.00084,61087.0,61086.0,3.11292698]
[1719458082392,0.00084,61087.0,61086.0,3.61198972]
[1719458085054,0.00839,61102.0,61086.0,3.61198972]
[1719458085271,0.03169358,61119.0,61105.0,0.02]
[1719458085428,0.171985,61123.0,61118.0,0.490852]
[1719458085429,0.07356701,61120.0,61118.0,0.490852]
[1719458085633,0.07356701,61121.0,61120.0,0.163612]
[1719458085836,0.08376479,61121.0,61120.0,0.163612]
[1719458086242,0.01019778,61121.0,61120.0,0.163612]
[1719458088185,0.06619778,61121.0,61120.0,0.164612]
[1719458088383,0.06619778,61121.0,61120.0,0.165612]
[1719458088589,0.056,61121.0,61120.0,0.165612]
[1719458088792,0.06619767,61121.0,61120.0,0.165612]
[1719458089379,0.72063767,61121.0,61120.0,0.165612]
[1719458089601,0.72063767,61121.0,61120.0,0.002]
[1719458091198,1.38089401,61121.0,61120.0,0.002]
[1719458091496,1.34716098,61121.0,61120.0,0.002]
[1719458091697,1.44558248,61121.0,61120.0,0.002]
[1719458091957,1.42107587,61121.0,61120.0,0.002]
[1719458092290,1.34755657,61121.0,61120.0,0.002]
[1719458093162,1.34751988,61121.0,61120.0,0.002]
[1719458094501,1.67473888,61121.0,61120.0,0.002]
[1719458094856,1.624387,61121.0,61120.0,0.002]
[1719458095063,1.67473125,61121.0,61120.0,0.002]
[1719458096933,1.57883125,61121.0,61120.0,0.002]
[1719458097136,1.67473125,61121.0,61120.0,0.002]
[1719458097307,1.68213125,61121.0,61120.0,0.002]
[1719458098199,1.67223349,61121.0,61120.0,0.002]
[1719458098386,1.68243177,61121.0,61120.0,0.002]
[1719458098797,1.25931277,61121.0,61120.0,0.002]
[1719458098999,1.35521277,61121.0,61120.0,0.002]
[1719458100356,1.45324783,61121.0,61120.0,0.002]
[1719458101053,1.35528767,61121.0,61120.0,0.002]
[1719458101239,1.304568,61121.0,61120.0,0.002]
[1719458101401,1.37528767,61121.0,61120.0,0.002]
[1719458101806,1.47332857,61121.0,61120.0,0.002]
[1719458102205,1.70250667,61121.0,61120.0,0.002]
[1719458102404,1.80055066,61121.0,61120.0,0.002]
[1719458103213,1.80055591,61121.0,61120.0,0.002]
[1719458103574,1.70206748,61121.0,61120.0,0.002]
[1719458103782,1.80012062,61121.0,61120.0,0.002]
[1719458104263,1.80096062,61121.0,61120.0,0.002]
[1719458104502,1.70290748,61121.0,61120.0,0.002]
[1719458104718,1.80096323,61121.0,61120.0,0.002]
[1719458105350,1.70290748,61121.0,61120.0,0.002]
[1719458106911,1.70290748,61121.0,61107.0,0.467]
[1719458106912,0.02,61111.0,61107.0,0.467]
[1719458107119,0.659533,61108.0,61107.0,0.467]
[1719458107318,1.36454326,61108.0,61107.0,0.467]
[1719458107518,0.0074,61105.0,61099.0,0.163667]
[1719458107767,0.0959,61102.0,61097.0,0.163671]
[1719458107916,0.0959,61098.0,61097.0,0.32600998]
[1719458108115,0.76053982,61098.0,61097.0,0.32600998]
[1719458109409,0.66463982,61098.0,61097.0,0.84515798]
[1719458109626,0.66463982,61098.0,61097.0,1.50385398]
[1719458109788,0.66463982,61098.0,61097.0,1.59975398]
[1719458109996,0.66463977,61098.0,61097.0,1.59975398]
[1719458110541,0.66463977,61098.0,61097.0,1.50385398]
[1719458110867,0.66463977,61098.0,61097.0,1.50885398]
[1719458111307,0.66463977,61098.0,61097.0,1.50385398]
[1719458111707,0.66563977,61098.0,61097.0,1.51385398]
[1719458112749,0.66563983,61098.0,61097.0,1.51885398]
[1719458113162,0.65544,61098.0,61097.0,1.51885398]
[1719458115717,0.65544,61098.0,61097.0,1.73475398]
[1719458115917,0.65544,61098.0,61097.0,1.93475398]
[1719458116684,0.65544,61098.0,61097.0,2.46210198]
[1719458117090,0.65544,61098.0,61097.0,2.45310198]
[1719458117316,0.65444,61098.0,61097.0,2.44310198]
[1719458117562,0.65444,61098.0,61097.0,2.45510198]
[1719458117783,0.65544,61098.0,61097.0,2.46710198]
[1719458117988,0.65544,61098.0,61097.0,2.26710198]
[1719458118813,0.65544,61098.0,61097.0,2.46710198]
[1719458123339,0.37137988,61098.0,61097.0,2.46710198]
[1719458125995,0.37137988,61098.0,61097.0,2.17120198]
[1719458126230,0.37137988,61098.0,61097.0,2.26710198]
[1719458127406,0.37137988,61098.0,61097.0,2.17120198]
[1719458127624,0.37137988,61098.0,61097.0,2.26710198]
[1719458129327,0.37137988,61098.0,61097.0,2.46710198]
[1719458137353,0.37137988,61098.0,61097.0,2.51609884]
[1719458137567,0.37137988,61098.0,61097.0,2.71609884]
[1719458138184,0.37137988,61098.0,61097.0,2.66710198]
[1719458138577,0.37137988,61098.0,61097.0,2.71609758]
[1719458138776,0.37137988,61098.0,61097.0,2.66710198]
[1719458138980,0.37137988,61098.0,61097.0,2.71702015]
[1719458139366,0.37221988,61098.0,61097.0,2.71702015]
[1719458139893,0.37221988,61098.0,61097.0,2.71701761]
[1719458140126,0.37221988,61098.0,61097.0,3.06736561]
[1719458140530,0.37221988,61098.0,61097.0,3.75282226]
[1719458140723,0.37221988,61098.0,61097.0,3.96384646]
[1719458140724,0.28191988,61098.0,61097.0,3.96384646]
[1719458140985,0.28191988,61098.0,61097.0,4.18384646]
[1719458141340,0.28191988,61098.0,61097.0,4.52369967]
[1719458141550,0.11824988,61098.0,61097.0,4.18377196]
[1719458141755,0.11724988,61098.0,61097.0,4.17177196]
[1719458142356,8.8e-07,61098.0,61097.0,4.17177196]
[1719458142558,0.0648,61122.0,61097.0,4.17177196]
[1719458142559,0.06316188,61122.0,61121.0,1.145266]
[1719458142759,0.07335738,61122.0,61121.0,1.30760498]
[1719458143147,0.15515738,61122.0,61121.0,0.98038598]
[1719458143347,0.0101955,61122.0,61121.0,1.30760498]
[1719458143549,0.0919955,61122.0,61121.0,1.30760498]
[1719458144118,0.0919955,61122.0,61121.0,1.30860498]
[1719458144944,0.0919955,61122.0,61121.0,1.30960498]
[1719458145306,0.0919955,61122.0,61121.0,1.30949598]
[1719458145307,0.0818,61122.0,61121.0,1.30949598]
[1719458145754,0.145,61122.0,61121.0,1.30949598]
[1719458152637,0.1481,61122.0,61121.0,0.32783898]
[1719458152844,0.15829597,61122.0,61121.0,0.16433898]
[1719458154023,0.15829638,61122.0,61121.0,0.16433898]
[1719458154430,0.25419638,61122.0,61121.0,0.002]
[1719458155081,0.81272638,61122.0,61121.0,0.002]
[1719458155916,0.90862638,61122.0,61121.0,0.002]
[1719458156330,0.81272638,61122.0,61121.0,0.002]
[1719458157384,0.81272624,61122.0,61121.0,0.002]
[1719458160500,0.54768724,61122.0,61121.0,0.002]
[1719458161802,0.64358724,61122.0,61121.0,0.002]
[1719458162856,0.64358778,61122.0,61121.0,0.002]
[1719458163466,0.66178778,61122.0,61121.0,0.002]
[1719458164314,0.56588778,61122.0,61121.0,0.002]
[1719458164516,0.53749075,61122.0,61121.0,0.65516698]
[1719458165089,0.5476871,61122.0,61121.0,0.65516698]
[1719458166289,0.5476871,61122.0,61121.0,0.16433898]
[1719458166496,0.6717871,61122.0,61121.0,0.002]
[1719458166898,0.8253941,61122.0,61121.0,0.002]
[1719458167547,0.8353941,61122.0,61121.0,0.002]
[1719458169075,0.8253941,61122.0,61121.0,0.002]
[1719458169646,0.81519775,61122.0,61121.0,0.002]
[1719458169865,1.48962575,61122.0,61121.0,0.002]
[1719458172899,1.47962575,61122.0,61121.0,0.002]
[1719458173104,1.48962575,61122.0,61121.0,0.002]
[1719458173300,1.47962575,61122.0,61121.0,0.002]
[1719458174466,1.53367046,61122.0,61121.0,0.002]
[1719458176499,2.03321817,61122.0,61121.0,0.002]
[1719458177443,2.03341615,61122.0,61121.0,0.002]
[1719458178070,1.87108244,61122.0,61121.0,0.002]
[1719458181334,1.87146806,61122.0,61121.0,0.002]
[1719458181544,1.99408354,61122.0,61121.0,0.002]
[1719458181741,1.89818354,61122.0,61121.0,0.002]
[1719458182152,1.96955181,61122.0,61121.0,0.002]
[1719458182380,1.96954906,61122.0,61121.0,0.002]
[1719458182575,1.87146806,61122.0,61121.0,0.002]
[1719458182979,1.86364913,61122.0,61121.0,0.002]
[1719458183256,1.96954913,61122.0,61121.0,0.002]
[1719458183618,1.87146806,61122.0,61121.0,0.002]
[1719458184415,1.96954196,61122.0,61121.0,0.002]
[1719458184616,1.96997288,61122.0,61121.0,0.002]
[1719458184831,1.87190183,61122.0,61121.0,0.002]
[1719458185030,1.8720833,61122.0,61121.0,0.002]
[1719458185233,1.96015439,61122.0,61121.0,0.002]
[1719458185990,1.96021738,61122.0,61121.0,0.002]
[1719458187743,1.85171726,61122.0,61121.0,0.002]
[1719458187947,1.95997565,61122.0,61121.0,0.002]
[1719458188139,1.96997565,61122.0,61121.0,0.002]